Cogmind - Beta 11 @@@ ROGUE MODE // 2022.03.19 @ 17:35:24 Player: TheGreatBorealis Result: Destroyed self with Rocket Launcher Performance ------------- Evolutions (2) 1000 Regions Visited (4) 800 Robots Destroyed (46) 230 Value Destroyed (1621) 1621 Prototype IDs (2) 40 Alien Tech Used (0) 0 Bonus (204) 204 TOTAL SCORE: 3895 Bonus ------- High Alert Combat Kills 55 Follower Combat Kills 149 Cogmind --------- Core Integrity 0/550 Matter 276/300 Energy 87/100 System Corruption 0% Temperature Cool (0) Movement Walking (120) Location -8/Materials Parts ------- > --- POWER (1) -------- (None) > --- PROPULSION (3) --- Aluminum Leg Aluminum Leg > --- UTILITY (5) ------ Improved Heat Sink Disposable Heat Sink Medium Storage Unit > --- WEAPON (2) ------- Beam Rifle Rocket Launcher > --- INVENTORY (10) --- Light Nuclear Core Disposable Heat Sink Medium Storage Unit High-powered Shotgun Axe Peak State ------------ > --- POWER ------------ Improved Ion Engine > --- PROPULSION ------- Improved Titanium Leg Improved Titanium Leg Improved Titanium Leg > --- UTILITY ---------- Heat Sink Heat Sink Medium Storage Unit > --- WEAPON ----------- Precision Shock Rifle Precision Shock Rifle > --- INVENTORY -------- Ion Engine Ion Engine Aluminum Leg Aluminum Leg Improved Titanium Leg Medium Storage Unit Terrain Scanner Precision Shock Rifle Improved Medium Laser Improved Medium Laser [Rating: 29] Favorites ----------- Power Light Ion Engine Engine Light Ion Engine Power Core Light Nuclear Core Propulsion Aluminum Leg Leg Aluminum Leg Utility Medium Storage Unit Device Heat Sink Storage Medium Storage Unit Processor Improved Targeting Computer Weapon EM Pulse Gun Energy Gun EM Pulse Gun Ballistic Gun Assault Rifle Launcher Rocket Launcher Slashing Weapon Axe Build | -11 -10 -9 -9 -8 ------- Run | Scr Mat Mat Sto Mat Slots Evolved 4 | . . 2 . 2 Power . | . . . . . Propulsion 1 | . . 1 . . Utility 3 | . . 1 . 2 Weapon . | . . . . . Parts Attached 65 | . 7 . 27 31 Power 9 | . . . 5 4 Engine 7 | . . . 5 2 Core 2 | . . . . 2 Reactor . | . . . . . Propulsion 23 | . 2 . 13 8 Treads . | . . . . . Leg 23 | . 2 . 13 8 Wheel . | . . . . . Hover . | . . . . . Flight . | . . . . . Utility 13 | . 3 . 5 5 Device 11 | . 1 . 5 5 Storage 1 | . 1 . . . Processor 1 | . 1 . . . Hackware . | . . . . . Protection . | . . . . . Artifact . | . . . . . Weapon 20 | . 2 . 4 14 Energy Gun 18 | . 2 . 4 12 Energy Cannon . | . . . . . Ballistic Gun . | . . . . . Ballistic Cannon . | . . . . . Launcher 1 | . . . . 1 Special Weapon . | . . . . . Impact Weapon . | . . . . . Slashing Weapon 1 | . . . . 1 Piercing Weapon . | . . . . . Special Melee Weapon . | . . . . . Unidentified Prototypes 2 | . . . 1 1 Parts Lost 26 | . . . 6 20 Power 5 | . . . . 5 Propulsion 7 | . . . 1 6 Utility 6 | . . . 3 3 Weapon 8 | . . . 2 6 Highest Loss Streak 8 | . . . 2 8 To Critical Strikes . | . . . . . Average Slot Usage (%) 91 | . 97 77 97 72 Engine 10 | . 14 11 11 3 Core 1 | . . . . 5 Leg 29 | . 28 22 32 25 Device 12 | . 3 11 20 11 Storage 11 | . 14 11 11 9 Processor 2 | . 7 . . . Energy Gun 20 | . 20 22 22 16 Ballistic Gun 2 | . 7 . . . Naked Turns . | . . . . . Heaviest Build 28 | 12 19 19 25 28 Greatest Support 60 | 20 20 20 30 60 Greatest Overweight (x) 1 | . . . 1 1 Average Overweight (x) . | . . . . . Largest Inventory Capacity 10 | . 10 10 10 10 Average Capacity 9 | . 9 10 10 10 Most Carried 10 | . 10 10 10 10 Average Carried 8 | . 8 10 9 8 Final Capacity 10 | 8 10 10 10 10 Final Carried 10 | 6 10 10 10 5 Class Distribution -------------------- 53% | Mutant 44% | Scavenger-Mutant Dominant Class ---------------- Mutant | -10/Materials Mutant | -9/Materials Scavenger-Mutant | -9/Storage Mutant | -8/Materials Resources | -11 -10 -9 -9 -8 ----------- Run | Scr Mat Mat Sto Mat Matter Collected 831 | 156 156 . 270 249 Remotely . | . . . . . Salvage Created 1912 | . 290 55 867 700 Parts 98 | . 23 5 46 24 Haulers Intercepted 3 | . 1 . 1 1 Recyclers Shooed 1 | . 1 . . . Parts Field Recycled . | . . . . . Retrieved Matter . | . . . . . Parts Self-Destructed . | . . . . . Prevented . | . . . . . Kills | -11 -10 -9 -9 -8 ------- Run | Scr Mat Mat Sto Mat Combat Hostiles Destroyed 39 | . 6 1 19 13 Melee 2 | . . . . 2 Guns 31 | . 6 1 16 8 AOE 2 | . . . . 2 Classes Destroyed 9 | . 4 1 . 4 Builder 1 | . . . . 1 Hauler 3 | . 1 . 1 1 Watcher 3 | . 2 . 1 . Swarmer 3 | . 3 . . . Grunt 26 | . 3 . 14 9 Duelist 1 | . . . . 1 Sentry 6 | . . 1 5 . Specialist 2 | . . . . 2 Heavy 1 | . . . . 1 Best Kill Streak 5 | . 2 1 5 3 Combat Bots Only 5 | . 2 1 5 3 Max Kills in Single Turn 2 | . 1 1 1 2 Gunslinging . | . . . . . Exploded 2 | . . . . 2 Melee 1 | . . . . 1 Uniques/NPCs Destroyed . | . . . . . Combat | -11 -10 -9 -9 -8 -------- Run | Scr Mat Mat Sto Mat Damage Taken 4309 | . 222 76 1463 2548 Core 968 | . 25 17 374 552 Absorbed by Shields . | . . . . . Core Remaining (%) 64 | 100 90 . 2 . Volleys Fired 190 | . 27 3 77 83 Largest 2 | . 2 2 2 2 Hottest 130 | . 105 105 112 130 Shots Fired 315 | . 54 6 152 103 Gun 313 | . 54 6 152 101 Cannon . | . . . . . Launcher 2 | . . . . 2 Special . | . . . . . Kinetic 14 | . 14 . . . Thermal 252 | . 13 3 145 91 Explosive 2 | . . . . 2 Electromagnetic 47 | . 27 3 7 10 Robot Hit Streak 26 | . 7 3 26 9 Robot Miss Streak 6 | . 6 2 3 4 Penetration Max . | . . . . . Secondary Targets 2 | . . . 2 . Max Gunslinging Chain 1 | . . . 1 . Shots Hit Robots 226 | . 26 4 122 74 Core Hits 83 | . 12 2 37 32 Critical Kills . | . . . . . Critical Parts Destroyed . | . . . . . Critical Strikes 7 | . . . 5 2 Burn 7 | . . . 5 2 Melee Attacks 4 | . . . . 4 Impact . | . . . . . Slashing 4 | . . . . 4 Piercing . | . . . . . Sneak Attacks . | . . . . . Combat Hostiles . | . . . . . Follow-up Attacks . | . . . . . Damage Inflicted 3746 | . 373 55 1737 1581 Guns 3350 | . 345 55 1704 1246 Cannons . | . . . . . Explosions 311 | . 28 . 29 254 Melee 80 | . . . . 80 Ramming 5 | . . . 4 1 Kinetic 49 | . 49 . . . Thermal 2853 | . 85 33 1666 1069 Explosive 254 | . . . . 254 Electromagnetic 505 | . 239 22 67 177 Impact . | . . . . . Slashing 80 | . . . . 80 Piercing . | . . . . . Highest Corruption . | . . . . . Average Corruption . | . . . . . Corruption Purged . | . . . . . Corruption Blocked . | . . . . . Overload Shots . | . . . . . Overflow Damage . | . . . . . Projectiles . | . . . . . Explosions . | . . . . . Melee . | . . . . . Knockbacks . | . . . . . Impact . | . . . . . Kinetic . | . . . . . Secondary . | . . . . . Self-Inflicted Damage 171 | . 71 . 27 73 Shots 5 | . 2 . 1 2 Rammed . | . . . . . Targets Rammed 2 | . . . 1 1 Kicked 2 | . . . 1 1 Crushed . | . . . . . Highest Temperature 263 | . 78 36 16 263 Average Temperature 50 | . 25 21 7 63 Received Heat Transfer 1617 | . 66 27 543 981 Siege Activations . | . . . . . Robots Corrupted . | . . . . . Combat Hostiles . | . . . . . Parts Fried . | . . . . . Impact Corruptions . | . . . . . Robots Melted 4 | . . . 3 1 Combat Hostiles 4 | . . . 3 1 Parts Melted 14 | . . . 8 6 Heat Transferred 7239 | . 198 74 4414 2553 Parts Sabotaged . | . . . . . Parts Stolen . | . . . . . Parts Stripped . | . . . . . Power Chain Reactions 4 | . 2 . 1 1 Missiles Intercepted . | . . . . . Alert | -11 -10 -9 -9 -8 ------- Run | Scr Mat Mat Sto Mat Peak Influence 471 | . 244 90 414 471 Initial 153 | . . 45 37 153 Average 187 | . 62 73 234 311 Maximum Alert Level 2 | . 1 . 2 2 Low Security (%) 53 | . 94 100 33 20 Level 1 39 | . 5 . 64 51 Level 2 6 | . . . 1 28 Level 3 . | . . . . . Level 4 . | . . . . . Level 5 . | . . . . . High Security . | . . . . . Max Security . | . . . . . Squads Dispatched 9 | . 1 . 5 3 Investigation 1 | . . . 1 . Extermination . | . . . . . Reinforcement 7 | . 1 . 3 3 Assault . | . . . . . Garrison 1 | . . . 1 . Intercept . | . . . . . Searches Triggered . | . . . . . Construction Impeded 1 | . . . . 1 Haulers Reinforced . | . . . . . Active Scanning Responses . | . . . . . Cargo Convoy Interrupts . | . . . . . Stealth | -11 -10 -9 -9 -8 --------- Run | Scr Mat Mat Sto Mat Distress Signals 8 | . . . 4 4 Communications Jammed . | . . . . . Distress Signals . | . . . . . Times Spotted 90 | . 14 1 42 33 Peak Tracking Total 8 | . 3 1 6 8 Tactical Retreats 10 | . 3 . 3 4 Traps | -11 -10 -9 -9 -8 ------- Run | Scr Mat Mat Sto Mat Traps Triggered 4 | . . . 4 . Indirectly . | . . . . . Trap Hack Attempts . | . . . . . Triggered . | . . . . . Disarmed . | . . . . . Reprogrammed . | . . . . . Reused . | . . . . . Traps Extracted . | . . . . . Installed . | . . . . . Triggered . | . . . . . Machines | -11 -10 -9 -9 -8 ---------- Run | Scr Mat Mat Sto Mat Machines Disabled 1 | . 1 . . . Max in Single Turn 1 | . 1 . . . Machines Sabotaged . | . . . . . Garrisons Compromised . | . . . . . Overloaded Fab Kills . | . . . . . Hacking | -11 -10 -9 -9 -8 --------- Run | Scr Mat Mat Sto Mat Machines Accessed 6 | . 2 1 3 . Terminals 5 | . 2 1 2 . Fabricators . | . . . . . Repair Stations . | . . . . . Recycling Units 1 | . . . 1 . Scanalyzers . | . . . . . Garrison Access . | . . . . . Total Hacks 15 | . 6 2 7 . Successful 8 | . 2 . 6 . Failed 7 | . 4 2 1 . Catastrophic . | . . . . . Database Lockouts . | . . . . . Manual . | . . . . . Terminals 14 | . 6 2 6 . Fabricators . | . . . . . Repair Stations . | . . . . . Recycling Units 1 | . . . 1 . Scanalyzers . | . . . . . Garrison Access . | . . . . . Terminal Hacks 7 | . 2 . 5 . Open Door 1 | . . . 1 . Alert Level 1 | . . . 1 . Locate Traps 1 | . 1 . . . Surveillance Status 1 | . . . 1 . Investigation Status 1 | . . . 1 . Zone Layout 2 | . 1 . 1 . Fabricator Hacks . | . . . . . Repair Station Hacks . | . . . . . Recycling Unit Hacks 1 | . . . 1 . Report Inventory 1 | . . . 1 . Scanalyzer . | . . . . . Garrison Access Hacks . | . . . . . Unauthorized Hacks . | . . . . . Terminals . | . . . . . Fabricators . | . . . . . Repair Stations . | . . . . . Recycling Units . | . . . . . Scanalyzers . | . . . . . Garrison Access . | . . . . . Data Cores Recovered . | . . . . . Used . | . . . . . Hacking Detections 4 | . 2 1 1 . Full Trace Events . | . . . . . Feedback Events . | . . . . . Feedback Blocked . | . . . . . Robot Schematics Acquired . | . . . . . Robots Built . | . . . . . Authchips . | . . . . . Time . | . . . . . Total Robot Build Rating . | . . . . . Part Schematics Acquired . | . . . . . Parts Built . | . . . . . Authchips . | . . . . . Time . | . . . . . Total Part Build Rating . | . . . . . Parts Repaired . | . . . . . Time . | . . . . . Parts Recycled . | . . . . . Recycled Matter . | . . . . . Retrieved Matter . | . . . . . Retrieved Components . | . . . . . Parts Scanalyzed . | . . . . . Part Schematics Acquired . | . . . . . Parts Damaged . | . . . . . Bothacking | -11 -10 -9 -9 -8 ------------ Run | Scr Mat Mat Sto Mat Used RIF Installer . | . . . . . Robots Hacked . | . . . . . Non-combat . | . . . . . Combat . | . . . . . Robot Hacks Applied . | . . . . . Relay Couplers Released . | . . . . . Fabnet Peak Effective % . | . . . . . Robots Rewired . | . . . . . Allies Hacked . | . . . . . Hacks Repelled . | . . . . . Allies | -11 -10 -9 -9 -8 -------- Run | Scr Mat Mat Sto Mat Total Allies 10 | . . . 10 . Largest Group 10 | . . . 10 . Highest-Rated Group 88 | . . . 88 . Highest-Rated Ally 16 | . . . 16 . Total Orders . | . . . . . Ally Attacks 39 | . . . 39 . Total Damage 407 | . . . 407 . Kills 6 | . . . 6 . Allies Corrupted . | . . . . . Allies Melted . | . . . . . Intel | -11 -10 -9 -9 -8 ------- Run | Scr Mat Mat Sto Mat Robot Analysis Total . | . . . . . Derelict Logs Recovered . | . . . . . Drone Launches . | . . . . . Drone Recoveries . | . . . . . Exploration | -11 -10 -9 -9 -8 ------------- Run | Scr Mat Mat Sto Mat Turns Passed 2592 | . 887 82 1051 572 Spaces Moved 1378 | 1 594 53 516 214 Core . | . . . . . Treads . | . . . . . Legs 1378 | 1 594 53 516 214 Wheels . | . . . . . Hover . | . . . . . Flight . | . . . . . Fastest Speed 120 | 120 120 120 120 120 Average Speed 122 | 120 120 120 121 133 Slowest Speed 190 | 120 120 120 190 190 Overloaded Moves . | . . . . . Propulsion Burnouts . | . . . . . Robots Hopped . | . . . . . Cave-ins Triggered . | . . . . . Exploration Rate (%) 31 | 2 59 6 74 14 Regions Visited 4 Branch Regions 1 Pre-discovered Areas . | . . . . . Known Exits Taken . | . . . . . Unknown Exits Taken 4 | 1 1 1 1 . Scrap Searched . | . . . . . Spaces Dug 6 | . . . . 6 Terrain Destroyed 25 | . 8 . 2 15 Melee . | . . . . . Projectile . | . . . . . AOE 25 | . 8 . 2 15 Terrain Rammed . | . . . . . Walls Destroyed . | . . . . . Machines Disabled . | . . . . . Actions | -11 -10 -9 -9 -8 --------- Run | Scr Mat Mat Sto Mat Total 1982 | . 719 65 800 398 Wait 257 | . 69 10 146 32 Move 1374 | . 593 52 515 214 Hop . | . . . . . Pick Up 32 | . 11 . 6 15 Fast Attach 15 | . 2 . 4 9 Attach 23 | . 2 . 5 16 Detach 6 | . 2 . 1 3 Swap 27 | . 3 . 18 6 Drop 46 | . 10 . 21 15 Fire 190 | . 27 3 77 83 Melee 4 | . . . . 4 Ram . | . . . . . Kick 2 | . . . 1 1 Crush . | . . . . . Escape Stasis 5 | . . . 5 . Rewire 1 | . . . 1 . Trap . | . . . . . Miscellaneous . | . . . . . Route ------- -11/Scrapyard -10/Materials (discovered 2 exits: *Mat x2) -9/Materials -9/Storage (discovered 2 exits: [*Mat] / [Rec]) -8/Materials History --------- Turn | Location | Event 1 | -11/Scrapyard | Discovered new exit (range 0) 1 | -11/Scrapyard | Entered Materials 207 | -10/Materials | Discovered new exit (range 7) 315 | -10/Materials | Build established: Mutant 882 | -10/Materials | Discovered new exit (range 4) 888 | -10/Materials | Entered another Materials area 888 | -9/Materials | Evolved 2 slots: Propulsion x1, Utility x1 899 | -9/Materials | Discovered new exit (range 15) 970 | -9/Materials | Entered Storage 1391 | -9/Storage | Build established: Scavenger-Mutant 1412 | -9/Storage | Discovered new exit (range 19) 1559 | -9/Storage | Core integrity fell below 50% 1718 | -9/Storage | Assisted by bots powering up and referring to "LRC-V3" 1811 | -9/Storage | Found Corrupted Prototype Launcher 1956 | -9/Storage | Garrison activated, responded to threat 1958 | -9/Storage | Core integrity fell below 20% 2003 | -9/Storage | Discovered new exit (range 16) 2021 | -9/Storage | Entered Materials 2021 | -8/Materials | Evolved 2 slots: Utility x2 2317 | -8/Materials | Lost 6 parts (2p1n3w) 2340 | -8/Materials | Build established: Mutant 2491 | -8/Materials | Core integrity fell below 50% 2528 | -8/Materials | Core integrity fell below 20% 2573 | -8/Materials | Lost 8 parts (5n3w) 2593 | -8/Materials | Destroyed self with Rocket Launcher Last Messages --------------- 02519_ X-57 Shotgunner suffers critical hit (Burn). 02524_ The unstable cave ceiling collapses. 02524_ Aluminum Leg destroyed. 02533_ Particle Gun destroyed. 02536_ Imp. Titanium Leg destroyed. 02536_ Aluminum Leg destroyed. 02542_ Particle Gun destroyed. 02549_ X-57 Shotgunner heat damages Hrd. Medium Armor Plating, VSS Leg, Nuclear Core. 02550_ X-57 Shotgunner destroyed. 02557_ Acquired 25 matter. 02564_ Acquired Imp. Heat Sink. 02565_ Atomic Centrifuge disabled. 02568_ Acquired Hpw. Shotgun. 02580_ Acquired 8 matter. 02588_ Acquired Rocket Launcher. 02588_ Critical hit (Burn: +37). 02591_ Imp. Heat Sink destroyed. 02592_ Lgt. Nuclear Core destroyed. 02593_ G-47 Trooper destroyed. Map ----- +----------------------------------------------------+ | ???????????????????????????????????????????? | | ???????????????????????????????????????????? | | ???????????????????????????????????????????? | | ???????????????????????????????????????????? | | ???????????????????????????????????????????? | | ???????????????????????????????????????????? | | ???????????????????????????????????????????? | | ???????????????????????????????????????????? | | ???????????????????????????????????????????? | | ???????????????????????????????????????????? | | ???????????????????????????????????????????? | | ???????????????????????????????????????????? | | ???????????????????????????????????????????? | | ?????????????????????????????????????? #### | | ????????????????????????????????????? | | ????????????????????????????????????? | | ????????????????????????????????????# | | ????????????????????????????????????# #### | | ?????????????????????#####+##???????# #??? | | ?????????????????????+ +???" ??# #??? | | ?????????????????????# #??"" ?# #??? | | ???????????????##+#### # ? ?# #??? | | ???????????????# # ??? # #??? | | ????????????##?# +????? # #??? | | ????????????#;##;######### #?????? + +??? | | ?????????????# @#?? ## #???????# #?? | | ?????????????# ! #"## ######### #??? | | ?????????????# * #### | | ?????????????# %g | | ?????????????# ! % # ######## | | ?????????????# #?# | | ?????????????### k ######+### | | ??????????????###### % # | | ??????????????# " # """ """ | | ??????????????# % " # """ """ | | ??????????????######! "" # """ """ | | ???????????????????### # | | ?????????????????????# # | | ?????????????????????# # #### | | ??????????????????????#? # ###??########## | | | | | | | | | | | | | | | | | | | | | +----------------------------------------------------+ Best States ------------- Heat Dissipation 59 Coolant Potential 50 Energy Generation 14 Energy Capacity 265 Matter Stores 300 Matter Capacity 300 Sight Range 16 Terrain Scan Range 14 Terrain Scan Density 10 Evasion (%) 55 Targeting Accuracy 6 Item Schematics ----------------- None Robot Schematics ------------------ None Fabricated ------------ Nothing Alien Tech Used ----------------- None Achievements -------------- None Challenges ------------ None Game ------ Seed FusionPrecisionSystem Manual? 0 Play Time 00:37:29 Cumulative 114.5 hours Start 2022.03.17 @ 18:40:43 End 2022.03.19 @ 17:35:24 Sessions 3 Manual Loads 0 Difficulty Rogue Special Mode None Game No. 191 Rogue 191 Adventurer 0 Explorer 0 Win Type - Total 0 Types 0/0/0/0/0/0/0/0/0 Lore% 56 Gallery% 58 Achievement% 46 Wizard Run 0 Options --------- ASCII 0 Keyboard 1 Movement Numpad Keybinds 0 Fullscreen 2 Font 18/Terminus Map View 76x50 Tactical HUD 1 Map Filters NONE Filters NONE Steam 1 RUN: 3b31d4cb-52fc-49e8-b8a7-2cf64ea9e93f